[Event "*** Titled Tuesday Blitz"]
[Site "Chess.com"]
[Date "2020.10.27"]
[Round "4"]
[White "Guenplen"]
[Black "MatyChess1"]
[Result "1-0"]
[WhiteElo "2841"]
[BlackElo "2549"]
[TimeControl "180+1"]
[EndTime "10:38:29 PDT"]
[Termination "Guenplen won by resignation"]

1. d4 {[%clk 0:03:00.9]} 1... Nf6 {[%clk 0:02:58.5]} 2. Bf4 {[%clk 0:03:01.1]}
2... d5 {[%clk 0:02:57.2]} 3. e3 {[%clk 0:03:00.8]} 3... c5 {[%clk 0:02:58.1]}
4. dxc5 {[%clk 0:03:01.1]} 4... Nc6 {[%clk 0:02:56.7]} 5. Bb5 {[%clk 0:03:00.8]}
5... Qa5+ {[%clk 0:02:45.9]} 6. Nc3 {[%clk 0:02:59.4]} 6... e6 {[%clk
0:02:36.4]} 7. Qd4 {[%clk 0:02:52.4]} 7... Be7 {[%clk 0:02:16.9]} 8. Ne2 {[%clk
0:02:39.6]} 8... O-O {[%clk 0:02:15.7]} 9. Bxc6 {[%clk 0:02:39.5]} 9... bxc6
{[%clk 0:02:16.6]} 10. b4 {[%clk 0:02:39.4]} 10... Qa3 {[%clk 0:02:12.2]} 11.
Rb1 {[%clk 0:02:35.3]} 11... Nd7 {[%clk 0:02:01.4]} 12. Rb3 {[%clk 0:02:11.5]}
12... Qa6 {[%clk 0:01:59.7]} 13. O-O {[%clk 0:02:11.1]} 13... Bf6 {[%clk
0:01:15.4]} 14. Qd2 {[%clk 0:02:08]} 14... e5 {[%clk 0:01:10.2]} 15. Bg3 {[%clk
0:02:07.6]} 15... Rb8 {[%clk 0:01:09.3]} 16. h3 {[%clk 0:01:30.2]} 16... Qc4
{[%clk 0:01:06.2]} 17. a3 {[%clk 0:01:28.5]} 17... a5 {[%clk 0:01:00.2]} 18.
Rfb1 {[%clk 0:01:24.3]} 18... axb4 {[%clk 0:00:51.6]} 19. axb4 {[%clk
0:01:23.1]} 19... Ba6 {[%clk 0:00:50.8]} 20. Nc1 {[%clk 0:01:08.6]} 20... Rb7
{[%clk 0:00:45]} 21. Nd3 {[%clk 0:01:01.2]} 21... d4 {[%clk 0:00:10.3]} 22. Ne4
{[%clk 0:00:53.3]} 22... Qd5 {[%clk 0:00:08]} 23. Nd6 {[%clk 0:00:49.3]} 23...
Bxd3 {[%clk 0:00:07.1]} 24. cxd3 {[%clk 0:00:43.8]} 24... Ra7 {[%clk 0:00:03.8]}
25. e4 {[%clk 0:00:42]} 25... Qe6 {[%clk 0:00:03.8]} 26. Nc4 {[%clk 0:00:37.6]}
26... Rfa8 {[%clk 0:00:04.1]} 27. f4 {[%clk 0:00:35.5]} 27... exf4 {[%clk
0:00:02.7]} 28. Qxf4 {[%clk 0:00:33.4]} 28... h6 {[%clk 0:00:03.6]} 29. Qd6
{[%clk 0:00:32.3]} 29... Qe8 {[%clk 0:00:01.2]} 30. Qxc6 {[%clk 0:00:30.1]}
30... Ra2 {[%clk 0:00:02.1]} 31. R3b2 {[%clk 0:00:28.1]} 31... Ra1 {[%clk
0:00:01.6]} 32. Nd6 {[%clk 0:00:25.9]} 32... Rxb1+ {[%clk 0:00:01.7]} 33. Rxb1
{[%clk 0:00:25.8]} 33... Qe7 {[%clk 0:00:02.3]} 34. Qxa8+ {[%clk 0:00:25.6]}
34... Nf8 {[%clk 0:00:02]} 1-0

[Event "*** Titled Tuesday Blitz"]
[Site "Chess.com"]
[Date "2020.10.27"]
[Round "4"]
[White "PaulfromSPb"]
[Black "capatl"]
[Result "1-0"]
[WhiteElo "2673"]
[BlackElo "2489"]
[TimeControl "180+1"]
[EndTime "10:38:29 PDT"]
[Termination "PaulfromSPb won by resignation"]

1. e4 {[%clk 0:03:00.9]} 1... c5 {[%clk 0:02:59.7]} 2. Ne2 {[%clk 0:02:56]} 2...
e6 {[%clk 0:03:00.2]} 3. g3 {[%clk 0:02:55.9]} 3... b5 {[%clk 0:02:50.6]} 4. Bg2
{[%clk 0:02:55.4]} 4... Bb7 {[%clk 0:02:51]} 5. c3 {[%clk 0:02:54.7]} 5... Nf6
{[%clk 0:02:48.5]} 6. d3 {[%clk 0:02:54.3]} 6... Qc7 {[%clk 0:02:44.8]} 7. O-O
{[%clk 0:02:53.7]} 7... Be7 {[%clk 0:02:44.3]} 8. a4 {[%clk 0:02:50.7]} 8... a6
{[%clk 0:02:42.4]} 9. axb5 {[%clk 0:02:50.5]} 9... axb5 {[%clk 0:02:43.1]} 10.
Rxa8 {[%clk 0:02:50.7]} 10... Bxa8 {[%clk 0:02:44]} 11. Na3 {[%clk 0:02:51]}
11... Bc6 {[%clk 0:02:40.3]} 12. Re1 {[%clk 0:02:41]} 12... O-O {[%clk
0:02:39.6]} 13. Nf4 {[%clk 0:02:28]} 13... d5 {[%clk 0:02:03.7]} 14. exd5 {[%clk
0:02:00.1]} 14... exd5 {[%clk 0:02:04.6]} 15. Nc2 {[%clk 0:01:54.5]} 15... Nbd7
{[%clk 0:02:00.5]} 16. d4 {[%clk 0:01:50.6]} 16... Bd6 {[%clk 0:01:24.4]} 17.
dxc5 {[%clk 0:01:48]} 17... Bxc5 {[%clk 0:01:10]} 18. Nd4 {[%clk 0:01:44]} 18...
Bxd4 {[%clk 0:01:03.5]} 19. Qxd4 {[%clk 0:01:43.2]} 19... Qb6 {[%clk 0:00:58]}
20. Be3 {[%clk 0:01:41.1]} 20... Qb7 {[%clk 0:00:48.3]} 21. h4 {[%clk
0:01:30.6]} 21... Re8 {[%clk 0:00:47.7]} 22. Bd2 {[%clk 0:01:29]} 22... Rxe1+
{[%clk 0:00:45.4]} 23. Bxe1 {[%clk 0:01:29.9]} 23... Qb6 {[%clk 0:00:40.7]} 24.
Qd1 {[%clk 0:01:22.9]} 24... Nc5 {[%clk 0:00:38.3]} 25. Bd2 {[%clk 0:01:22.1]}
25... Nce4 {[%clk 0:00:33.1]} 26. Be3 {[%clk 0:01:21.9]} 26... Qa5 {[%clk
0:00:32.6]} 27. g4 {[%clk 0:01:19.6]} 27... h6 {[%clk 0:00:30.7]} 28. Bd4 {[%clk
0:01:08.7]} 28... b4 {[%clk 0:00:30.7]} 29. f3 {[%clk 0:01:01.2]} 29... bxc3
{[%clk 0:00:25.2]} 30. fxe4 {[%clk 0:00:58.5]} 30... c2 {[%clk 0:00:25.6]} 31.
Qxc2 {[%clk 0:00:53.1]} 31... Qe1+ {[%clk 0:00:25.4]} 32. Bf1 {[%clk 0:00:52.6]}
32... Qg3+ {[%clk 0:00:23.9]} 33. Ng2 {[%clk 0:00:21.2]} 33... Nxg4 {[%clk
0:00:23.4]} 34. Be2 {[%clk 0:00:21.6]} 34... Qh2+ {[%clk 0:00:18.7]} 35. Kf1
{[%clk 0:00:21.8]} 35... Qh1+ {[%clk 0:00:14.3]} 36. Bg1 {[%clk 0:00:22.2]}
36... Nh2+ {[%clk 0:00:13.9]} 37. Kf2 {[%clk 0:00:22.3]} 37... Ng4+ {[%clk
0:00:13.8]} 38. Bxg4 {[%clk 0:00:22.2]} 38... dxe4 {[%clk 0:00:13.7]} 39. Qxc6
{[%clk 0:00:21.6]} 1-0

[Event "*** Titled Tuesday Blitz"]
[Site "Chess.com"]
[Date "2020.10.27"]
[Round "4"]
[White "shineatchess"]
[Black "SanchezKelvin"]
[Result "1-0"]
[WhiteElo "2195"]
[BlackElo "2393"]
[TimeControl "180+1"]
[EndTime "10:38:29 PDT"]
[Termination "shineatchess won on time"]

1. e4 {[%clk 0:03:00.9]} 1... c5 {[%clk 0:02:41.4]} 2. Nf3 {[%clk 0:03:00.5]}
2... d6 {[%clk 0:02:40.4]} 3. Bb5+ {[%clk 0:03:00.2]} 3... Nd7 {[%clk 0:02:40]}
4. O-O {[%clk 0:02:59.5]} 4... a6 {[%clk 0:02:38.1]} 5. Bd3 {[%clk 0:02:58.9]}
5... Ngf6 {[%clk 0:02:37]} 6. Re1 {[%clk 0:02:57.8]} 6... e6 {[%clk 0:02:36.6]}
7. c3 {[%clk 0:02:57.5]} 7... b5 {[%clk 0:02:22.1]} 8. a4 {[%clk 0:02:57.1]}
8... Rb8 {[%clk 0:02:21.4]} 9. axb5 {[%clk 0:02:55.4]} 9... axb5 {[%clk
0:02:22.3]} 10. Bc2 {[%clk 0:02:55.3]} 10... c4 {[%clk 0:02:21.2]} 11. d4 {[%clk
0:02:49.8]} 11... cxd3 {[%clk 0:02:20.7]} 12. Bxd3 {[%clk 0:02:48.9]} 12... Be7
{[%clk 0:02:18.7]} 13. Qe2 {[%clk 0:02:37.3]} 13... b4 {[%clk 0:02:02.1]} 14.
cxb4 {[%clk 0:02:37]} 14... Rxb4 {[%clk 0:02:00.2]} 15. Nc3 {[%clk 0:02:37.5]}
15... O-O {[%clk 0:01:56.2]} 16. Be3 {[%clk 0:02:09.6]} 16... Ng4 {[%clk
0:01:52.9]} 17. Bf4 {[%clk 0:02:06]} 17... Qb6 {[%clk 0:01:48.9]} 18. Na4 {[%clk
0:01:57.7]} 18... Qb8 {[%clk 0:01:44.1]} 19. h3 {[%clk 0:01:54.9]} 19... Nge5
{[%clk 0:01:39.6]} 20. Nxe5 {[%clk 0:01:51.4]} 20... Nxe5 {[%clk 0:01:38.5]} 21.
Bc2 {[%clk 0:01:34.2]} 21... Ng6 {[%clk 0:01:29.6]} 22. Bd2 {[%clk 0:01:28.6]}
22... Rb7 {[%clk 0:01:20.9]} 23. b4 {[%clk 0:01:23.8]} 23... Bf6 {[%clk
0:01:12.5]} 24. Ra2 {[%clk 0:01:21]} 24... Bd7 {[%clk 0:01:02.3]} 25. f4 {[%clk
0:00:52]} 25... Bd4+ {[%clk 0:00:53.4]} 26. Kh1 {[%clk 0:00:48.7]} 26... d5
{[%clk 0:00:16.3]} 27. exd5 {[%clk 0:00:47.5]} 27... exd5 {[%clk 0:00:16.5]} 28.
f5 {[%clk 0:00:47.5]} 28... Nh4 {[%clk 0:00:11.8]} 29. Qg4 {[%clk 0:00:38.3]}
29... Bf6 {[%clk 0:00:05.9]} 30. Nc5 {[%clk 0:00:34.9]} 30... Ra7 {[%clk
0:00:03]} 31. Rxa7 {[%clk 0:00:31.4]} 31... Qxa7 {[%clk 0:00:03.9]} 32. Bg5
{[%clk 0:00:28.1]} 1-0

[Event "*** Titled Tuesday Blitz"]
[Site "Chess.com"]
[Date "2020.10.27"]
[Round "4"]
[White "MVM2008"]
[Black "Chessmatus"]
[Result "1-0"]
[WhiteElo "2240"]
[BlackElo "2408"]
[TimeControl "180+1"]
[EndTime "10:38:31 PDT"]
[Termination "MVM2008 won on time"]

1. e4 {[%clk 0:03:00.9]} 1... c5 {[%clk 0:02:57.8]} 2. Nf3 {[%clk 0:02:59.3]}
2... d6 {[%clk 0:02:58.3]} 3. d4 {[%clk 0:02:59.7]} 3... cxd4 {[%clk 0:02:58.6]}
4. Nxd4 {[%clk 0:03:00.6]} 4... Nf6 {[%clk 0:02:59.3]} 5. Nc3 {[%clk 0:03:01.1]}
5... a6 {[%clk 0:03:00]} 6. Bc4 {[%clk 0:03:01.3]} 6... e6 {[%clk 0:02:59.9]} 7.
Be3 {[%clk 0:02:59.7]} 7... b5 {[%clk 0:02:43.4]} 8. Bb3 {[%clk 0:02:59.3]} 8...
b4 {[%clk 0:02:43.9]} 9. Na4 {[%clk 0:02:56.9]} 9... Nbd7 {[%clk 0:02:18.2]} 10.
f3 {[%clk 0:02:43.3]} 10... Bb7 {[%clk 0:02:05.1]} 11. g4 {[%clk 0:02:32]} 11...
h6 {[%clk 0:02:03]} 12. Qd2 {[%clk 0:02:07.4]} 12... d5 {[%clk 0:02:01.8]} 13.
O-O-O {[%clk 0:02:00.2]} 13... Rc8 {[%clk 0:01:21.3]} 14. h4 {[%clk 0:01:55.5]}
14... dxe4 {[%clk 0:01:15.2]} 15. g5 {[%clk 0:01:46.2]} 15... Nd5 {[%clk
0:01:12.4]} 16. g6 {[%clk 0:01:38.5]} 16... N7f6 {[%clk 0:00:35.4]} 17. gxf7+
{[%clk 0:01:22]} 17... Kxf7 {[%clk 0:00:36.3]} 18. fxe4 {[%clk 0:01:14]} 18...
Nxe4 {[%clk 0:00:36.2]} 19. Rhf1+ {[%clk 0:01:07.6]} 19... Nef6 {[%clk
0:00:36.2]} 20. Nxe6 {[%clk 0:00:25.7]} 20... Kxe6 {[%clk 0:00:35.7]} 21. Rxf6+
{[%clk 0:00:21.3]} 21... gxf6 {[%clk 0:00:28.2]} 22. Nb6 {[%clk 0:00:19]} 22...
Bc5 {[%clk 0:00:02.2]} 23. Nxc8 {[%clk 0:00:16.6]} 23... Bxe3 {[%clk 0:00:01.9]}
24. Qxe3+ {[%clk 0:00:16.1]} 24... Kd7 {[%clk 0:00:01.4]} 25. Nb6+ {[%clk
0:00:13.3]} 25... Kc6 {[%clk 0:00:01.2]} 26. Bxd5+ {[%clk 0:00:11.5]} 1-0

[Event "*** Titled Tuesday Blitz"]
[Site "Chess.com"]
[Date "2020.10.27"]
[Round "4"]
[White "arminmusovic"]
[Black "mishanick"]
[Result "1/2-1/2"]
[WhiteElo "2597"]
[BlackElo "2984"]
[TimeControl "180+1"]
[EndTime "10:38:32 PDT"]
[Termination "Game drawn by repetition"]

1. a3 {[%clk 0:02:59.3]} 1... Nf6 {[%clk 0:02:40.2]} 2. Nc3 {[%clk 0:03:00.2]}
2... g6 {[%clk 0:02:38.5]} 3. e4 {[%clk 0:03:00.1]} 3... d6 {[%clk 0:02:33.7]}
4. d4 {[%clk 0:03:00.2]} 4... Bg7 {[%clk 0:02:33.8]} 5. Bg5 {[%clk 0:03:00.1]}
5... c5 {[%clk 0:02:32.8]} 6. dxc5 {[%clk 0:03:00.1]} 6... Qa5 {[%clk 0:02:33]}
7. b4 {[%clk 0:03:00.4]} 7... Qc7 {[%clk 0:02:30.6]} 8. Bxf6 {[%clk 0:03:00.9]}
8... exf6 {[%clk 0:02:25.7]} 9. Nd5 {[%clk 0:03:01.2]} 9... Qd8 {[%clk
0:02:25.4]} 10. Bb5+ {[%clk 0:02:55.1]} 10... Nc6 {[%clk 0:02:24.6]} 11. cxd6
{[%clk 0:02:30.9]} 11... Qxd6 {[%clk 0:02:23.5]} 12. c3 {[%clk 0:02:23.4]} 12...
f5 {[%clk 0:02:20.9]} 13. exf5 {[%clk 0:01:42.9]} 13... Bxf5 {[%clk 0:02:18.1]}
14. Ne2 {[%clk 0:01:43.5]} 14... O-O {[%clk 0:02:16.4]} 15. O-O {[%clk
0:01:41.6]} 15... Rad8 {[%clk 0:02:16.9]} 16. Ne3 {[%clk 0:01:41.4]} 16... Be6
{[%clk 0:02:02.2]} 17. Qxd6 {[%clk 0:01:36.9]} 17... Rxd6 {[%clk 0:02:03.1]} 18.
Rfd1 {[%clk 0:01:35.5]} 18... Rxd1+ {[%clk 0:01:55]} 19. Rxd1 {[%clk 0:01:36.4]}
19... Rc8 {[%clk 0:01:54.7]} 20. h3 {[%clk 0:01:32.7]} 20... Be5 {[%clk
0:01:49.4]} 21. c4 {[%clk 0:01:14.1]} 21... a6 {[%clk 0:01:17.5]} 22. Ba4 {[%clk
0:00:55.2]} 22... Bb2 {[%clk 0:01:12.7]} 23. Bxc6 {[%clk 0:00:52.2]} 23... bxc6
{[%clk 0:01:12.7]} 24. a4 {[%clk 0:00:48.6]} 24... Rb8 {[%clk 0:01:09.3]} 25. b5
{[%clk 0:00:35.8]} 25... axb5 {[%clk 0:01:09]} 26. cxb5 {[%clk 0:00:36.7]} 26...
cxb5 {[%clk 0:01:09.6]} 27. axb5 {[%clk 0:00:37.6]} 27... Kg7 {[%clk 0:00:55.5]}
28. Nd4 {[%clk 0:00:34.7]} 28... Bd7 {[%clk 0:00:55.5]} 29. Nc6 {[%clk
0:00:31.6]} 29... Bxc6 {[%clk 0:00:44.4]} 30. bxc6 {[%clk 0:00:31.6]} 30... Rc8
{[%clk 0:00:45.3]} 31. Rd2 {[%clk 0:00:25.3]} 31... Bc1 {[%clk 0:00:45.7]} 32.
Rc2 {[%clk 0:00:25]} 32... Bxe3 {[%clk 0:00:46.2]} 33. fxe3 {[%clk 0:00:25.9]}
33... Kf6 {[%clk 0:00:46.9]} 34. Kf2 {[%clk 0:00:25.5]} 34... Ke6 {[%clk
0:00:47.5]} 35. Kf3 {[%clk 0:00:25.2]} 35... Kd6 {[%clk 0:00:48.1]} 36. Kf4
{[%clk 0:00:24.2]} 36... f6 {[%clk 0:00:48.4]} 37. e4 {[%clk 0:00:20.4]} 37...
h6 {[%clk 0:00:44.5]} 38. h4 {[%clk 0:00:17.8]} 38... h5 {[%clk 0:00:41.7]} 39.
Rd2+ {[%clk 0:00:14]} 39... Ke6 {[%clk 0:00:39.4]} 40. Rc2 {[%clk 0:00:13.4]}
40... Kd6 {[%clk 0:00:39.8]} 41. Rd2+ {[%clk 0:00:14]} 41... Ke6 {[%clk
0:00:39.9]} 42. Rc2 {[%clk 0:00:12.7]} 42... Rc7 {[%clk 0:00:40.3]} 43. Rc1
{[%clk 0:00:12.6]} 43... Kd6 {[%clk 0:00:40.7]} 44. Rd1+ {[%clk 0:00:13.1]}
44... Ke6 {[%clk 0:00:40.3]} 45. Rc1 {[%clk 0:00:13.1]} 45... Kd6 {[%clk
0:00:40.3]} 46. Rd1+ {[%clk 0:00:13.7]} 46... Ke6 {[%clk 0:00:40.7]} 47. Rc1
{[%clk 0:00:14]} 1/2-1/2

[Event "*** Titled Tuesday Blitz"]
[Site "Chess.com"]
[Date "2020.10.27"]
[Round "4"]
[White "MateusViageiro"]
[Black "korbul"]
[Result "0-1"]
[WhiteElo "2355"]
[BlackElo "2590"]
[TimeControl "180+1"]
[EndTime "10:38:34 PDT"]
[Termination "korbul won by resignation"]

1. e4 {[%clk 0:03:00]} 1... c5 {[%clk 0:02:59.4]} 2. Nf3 {[%clk 0:02:59.3]} 2...
e6 {[%clk 0:02:59.5]} 3. g3 {[%clk 0:02:58.7]} 3... Nc6 {[%clk 0:02:58]} 4. Bg2
{[%clk 0:02:58.7]} 4... Nf6 {[%clk 0:02:57.4]} 5. d3 {[%clk 0:02:58.5]} 5... d5
{[%clk 0:02:56.6]} 6. Qe2 {[%clk 0:02:58]} 6... Be7 {[%clk 0:02:54.8]} 7. O-O
{[%clk 0:02:57.9]} 7... O-O {[%clk 0:02:53.8]} 8. Re1 {[%clk 0:02:58]} 8... b6
{[%clk 0:02:51.6]} 9. e5 {[%clk 0:02:57.9]} 9... Ne8 {[%clk 0:02:47.3]} 10. c4
{[%clk 0:02:52.8]} 10... Nc7 {[%clk 0:02:46.8]} 11. h4 {[%clk 0:02:51.8]} 11...
b5 {[%clk 0:02:46.1]} 12. Nc3 {[%clk 0:02:50.2]} 12... Rb8 {[%clk 0:02:31]} 13.
cxd5 {[%clk 0:02:46.9]} 13... exd5 {[%clk 0:02:28]} 14. Ng5 {[%clk 0:02:35.7]}
14... Nd4 {[%clk 0:02:13.5]} 15. Qd1 {[%clk 0:02:34]} 15... b4 {[%clk
0:02:10.5]} 16. Ne2 {[%clk 0:02:29]} 16... Nxe2+ {[%clk 0:01:29.4]} 17. Qxe2
{[%clk 0:02:29.9]} 17... h6 {[%clk 0:01:29.2]} 18. Nh3 {[%clk 0:02:22.8]} 18...
Nb5 {[%clk 0:01:28.2]} 19. Nf4 {[%clk 0:02:20.6]} 19... Nd4 {[%clk 0:01:27.9]}
20. Qd1 {[%clk 0:02:17.2]} 20... Bb7 {[%clk 0:01:21.2]} 21. Be3 {[%clk
0:02:16.3]} 21... Nf5 {[%clk 0:01:14.9]} 22. Bd2 {[%clk 0:02:16]} 22... c4
{[%clk 0:01:01.7]} 23. e6 {[%clk 0:02:12.6]} 23... Bc5 {[%clk 0:00:53.1]} 24.
Qg4 {[%clk 0:02:11.3]} 24... Qf6 {[%clk 0:00:48.6]} 25. exf7+ {[%clk 0:02:03.1]}
25... Rxf7 {[%clk 0:00:46.2]} 26. Re6 {[%clk 0:01:59.6]} 26... Qxb2 {[%clk
0:00:37.3]} 27. Rd1 {[%clk 0:01:25]} 27... Bxf2+ {[%clk 0:00:36.1]} 28. Kxf2
{[%clk 0:01:11.1]} 28... c3 {[%clk 0:00:36.2]} 29. Qe2 {[%clk 0:00:53.1]} 29...
cxd2 {[%clk 0:00:33.5]} 30. Rxd2 {[%clk 0:00:53.9]} 30... Qd4+ {[%clk
0:00:30.4]} 31. Ke1 {[%clk 0:00:53]} 31... Nxg3 {[%clk 0:00:27.4]} 32. Re8+
{[%clk 0:00:53]} 32... Rxe8 {[%clk 0:00:25.4]} 33. Qxe8+ {[%clk 0:00:52.2]}
33... Kh7 {[%clk 0:00:18.9]} 34. Qxf7 {[%clk 0:00:49]} 34... Qg1+ {[%clk
0:00:18.1]} 0-1

[Event "*** Titled Tuesday Blitz"]
[Site "Chess.com"]
[Date "2020.10.27"]
[Round "4"]
[White "RobPeresian"]
[Black "Shota_Azaladze"]
[Result "0-1"]
[WhiteElo "2423"]
[BlackElo "2647"]
[TimeControl "180+1"]
[EndTime "10:38:35 PDT"]
[Termination "Shota_Azaladze won on time"]

1. Nf3 {[%clk 0:03:00.9]} 1... g6 {[%clk 0:02:59.7]} 2. c4 {[%clk 0:03:00.3]}
2... Bg7 {[%clk 0:03:00.6]} 3. d4 {[%clk 0:02:58.3]} 3... f5 {[%clk 0:03:00.3]}
4. g3 {[%clk 0:02:56.2]} 4... Nf6 {[%clk 0:03:00.8]} 5. Bg2 {[%clk 0:02:56.5]}
5... O-O {[%clk 0:03:01.4]} 6. O-O {[%clk 0:02:57.1]} 6... c6 {[%clk 0:03:00]}
7. d5 {[%clk 0:02:49.5]} 7... cxd5 {[%clk 0:02:53.1]} 8. cxd5 {[%clk 0:02:49.6]}
8... Ne4 {[%clk 0:02:52.6]} 9. Nfd2 {[%clk 0:02:41]} 9... Nd6 {[%clk 0:02:51.4]}
10. Nc3 {[%clk 0:02:25.4]} 10... b5 {[%clk 0:02:50.2]} 11. a4 {[%clk 0:02:17.9]}
11... b4 {[%clk 0:02:49.6]} 12. Nb5 {[%clk 0:02:18]} 12... Na6 {[%clk
0:02:31.5]} 13. Qb3 {[%clk 0:01:40.9]} 13... Nb7 {[%clk 0:02:26.3]} 14. d6+
{[%clk 0:01:35.1]} 14... e6 {[%clk 0:02:26.1]} 15. Nc4 {[%clk 0:01:27.8]} 15...
Nbc5 {[%clk 0:02:13.6]} 16. Qc2 {[%clk 0:01:07.3]} 16... Bb7 {[%clk 0:02:10.4]}
17. Bf4 {[%clk 0:00:40.8]} 17... b3 {[%clk 0:02:08.1]} 18. Qd2 {[%clk
0:00:34.1]} 18... Bxg2 {[%clk 0:02:03.2]} 19. Kxg2 {[%clk 0:00:33.4]} 19... Qc8
{[%clk 0:02:03.8]} 20. Nc7 {[%clk 0:00:21.7]} 20... Qb7+ {[%clk 0:01:31.9]} 21.
f3 {[%clk 0:00:21.4]} 21... Rac8 {[%clk 0:01:28.2]} 22. Na5 {[%clk 0:00:17.8]}
22... Qb4 {[%clk 0:01:20.1]} 23. Qxb4 {[%clk 0:00:15.5]} 23... Nxb4 {[%clk
0:01:21]} 24. Rab1 {[%clk 0:00:11.2]} 24... Nxa4 {[%clk 0:01:20.1]} 25. Nc4
{[%clk 0:00:09.2]} 25... Nc2 {[%clk 0:01:16]} 26. Rfd1 {[%clk 0:00:07.5]} 26...
e5 {[%clk 0:01:12.2]} 27. Bxe5 {[%clk 0:00:06.6]} 27... Bxe5 {[%clk 0:01:09.8]}
28. Nxe5 {[%clk 0:00:07.5]} 28... Ne3+ {[%clk 0:01:10.1]} 29. Kf2 {[%clk
0:00:08.2]} 29... Nxd1+ {[%clk 0:01:10.7]} 30. Rxd1 {[%clk 0:00:08.8]} 30...
Rfd8 {[%clk 0:01:00.2]} 31. Rd3 {[%clk 0:00:08]} 31... Rb8 {[%clk 0:00:59.5]}
32. Rd2 {[%clk 0:00:04.3]} 32... Rb4 {[%clk 0:00:55.3]} 33. g4 {[%clk
0:00:03.7]} 33... fxg4 {[%clk 0:00:54.5]} 34. Nxg4 {[%clk 0:00:03.8]} 34... Nc5
{[%clk 0:00:51.5]} 35. Nf6+ {[%clk 0:00:02.5]} 35... Kg7 {[%clk 0:00:51.5]} 36.
Nfd5 {[%clk 0:00:02.2]} 36... Rh4 {[%clk 0:00:49.1]} 37. Kg3 {[%clk 0:00:01.9]}
37... Ra4 {[%clk 0:00:48.2]} 38. e4 {[%clk 0:00:02]} 38... Ra2 {[%clk
0:00:47.3]} 39. Ne7 {[%clk 0:00:01.9]} 39... a5 {[%clk 0:00:45.7]} 40. Kf2
{[%clk 0:00:01]} 40... a4 {[%clk 0:00:45.7]} 41. Ke2 {[%clk 0:00:01.4]} 41... a3
{[%clk 0:00:42.2]} 42. bxa3 {[%clk 0:00:02.3]} 42... Rb8 {[%clk 0:00:41.4]} 0-1

[Event "*** Titled Tuesday Blitz"]
[Site "Chess.com"]
[Date "2020.10.27"]
[Round "4"]
[White "ARTHURMOTIVATOR"]
[Black "davidkalashian"]
[Result "1-0"]
[WhiteElo "2367"]
[BlackElo "2564"]
[TimeControl "180+1"]
[EndTime "10:38:35 PDT"]
[Termination "ARTHURMOTIVATOR won by resignation"]

1. e4 {[%clk 0:02:58.8]} 1... c5 {[%clk 0:02:59.3]} 2. b3 {[%clk 0:02:58.1]}
2... Nc6 {[%clk 0:02:57.5]} 3. Bb2 {[%clk 0:02:58]} 3... d6 {[%clk 0:02:57.8]}
4. Bb5 {[%clk 0:02:57.4]} 4... Bd7 {[%clk 0:02:55.6]} 5. f4 {[%clk 0:02:54.9]}
5... Nf6 {[%clk 0:02:50.4]} 6. d3 {[%clk 0:02:53.3]} 6... Nd4 {[%clk 0:02:48.6]}
7. Bxd7+ {[%clk 0:02:50.5]} 7... Qxd7 {[%clk 0:02:49.5]} 8. Nf3 {[%clk
0:02:43.6]} 8... Qg4 {[%clk 0:02:28.8]} 9. O-O {[%clk 0:02:17.5]} 9... Qxf4
{[%clk 0:02:24.3]} 10. Nxd4 {[%clk 0:02:00]} 10... Qe5 {[%clk 0:02:07]} 11. Nb5
{[%clk 0:01:44.5]} 11... Qxb2 {[%clk 0:02:05.4]} 12. N1c3 {[%clk 0:01:41.9]}
12... a6 {[%clk 0:01:50]} 13. Rb1 {[%clk 0:01:37.8]} 13... Qxb1 {[%clk
0:01:49.8]} 14. Qxb1 {[%clk 0:01:37]} 14... axb5 {[%clk 0:01:50.3]} 15. Nxb5
{[%clk 0:01:37.4]} 15... Rc8 {[%clk 0:01:46.7]} 16. Qb2 {[%clk 0:01:31.4]} 16...
Nd7 {[%clk 0:01:35.5]} 17. Qa3 {[%clk 0:01:24.6]} 17... g6 {[%clk 0:01:26.1]}
18. Qa7 {[%clk 0:01:19.1]} 18... Rb8 {[%clk 0:01:09.9]} 19. Nc7+ {[%clk
0:01:17.3]} 19... Kd8 {[%clk 0:01:10.2]} 20. Nd5 {[%clk 0:01:14.8]} 20... e6
{[%clk 0:00:28.7]} 21. Nb6 {[%clk 0:01:09.6]} 21... Be7 {[%clk 0:00:28.6]} 22.
Nxd7 {[%clk 0:01:06.6]} 22... Kxd7 {[%clk 0:00:29.5]} 23. Qa4+ {[%clk
0:01:04.1]} 23... Kc7 {[%clk 0:00:24.8]} 24. Rxf7 {[%clk 0:01:03.2]} 24... Rhe8
{[%clk 0:00:24.8]} 25. Qc4 {[%clk 0:01:00.1]} 25... Kd7 {[%clk 0:00:16.9]} 26.
a4 {[%clk 0:00:59.8]} 26... b5 {[%clk 0:00:14.9]} 27. axb5 {[%clk 0:00:57.4]}
27... Rf8 {[%clk 0:00:13.6]} 28. Rxf8 {[%clk 0:00:55]} 28... Rxf8 {[%clk
0:00:14.5]} 29. b6 {[%clk 0:00:53.9]} 29... Bf6 {[%clk 0:00:14.8]} 30. Qb5+
{[%clk 0:00:51.7]} 30... Ke7 {[%clk 0:00:12.2]} 31. g3 {[%clk 0:00:50.2]} 31...
g5 {[%clk 0:00:05.4]} 32. Qc6 {[%clk 0:00:35.6]} 32... Bd4+ {[%clk 0:00:04.1]}
33. Kg2 {[%clk 0:00:34.9]} 33... g4 {[%clk 0:00:04.4]} 34. Qc7+ {[%clk
0:00:32.7]} 34... Ke8 {[%clk 0:00:04.5]} 35. Qc8+ {[%clk 0:00:32.7]} 35... Ke7
{[%clk 0:00:04.7]} 36. Qxf8+ {[%clk 0:00:31.8]} 36... Kxf8 {[%clk 0:00:05.2]}
37. b7 {[%clk 0:00:32]} 1-0